bitfinex/quotes_BTCUSD_20250730
["timestamp","ask_amount","ask_price","bid_price","bid_amount"]
[1753918713058,0.06752494,117850.0,117840.0,0.81197632]
[1753918713220,0.11057494,117850.0,117840.0,1.69710755]
[1753918713418,0.09192494,117850.0,117840.0,1.69710755]
[1753918713620,0.06752494,117850.0,117840.0,1.72038755]
[1753918713820,0.06752494,117850.0,117840.0,1.72556755]
[1753918715754,0.06547494,117850.0,117840.0,1.72556755]
[1753918716941,0.06547494,117850.0,117840.0,1.63907596]
[1753918717109,0.04927494,117850.0,117840.0,1.65547596]
[1753918717310,0.06477494,117850.0,117840.0,1.63907596]
[1753918720171,0.06477494,117850.0,117840.0,0.94721632]
[1753918720369,0.06477494,117850.0,117840.0,1.63907596]
[1753918720563,0.06477494,117850.0,117840.0,0.94721632]
[1753918720784,0.06682494,117850.0,117840.0,1.63907596]
[1753918723051,0.06477494,117850.0,117840.0,1.63907596]
[1753918724888,0.04927494,117850.0,117840.0,1.65557596]
[1753918725284,0.04927494,117850.0,117840.0,1.63907596]
[1753918725285,0.06457494,117850.0,117840.0,1.63907596]
[1753918725605,0.08302494,117850.0,117840.0,1.63598596]
[1753918725868,0.10742494,117850.0,117840.0,1.63598596]
[1753918726350,0.08302494,117850.0,117840.0,1.63598596]
[1753918727154,0.08302494,117850.0,117840.0,1.62750039]
[1753918727937,0.08302494,117850.0,117840.0,1.63915596]
[1753918728163,0.06662494,117850.0,117840.0,1.63915596]
[1753918731460,0.06457494,117850.0,117840.0,1.63915596]
[1753918738565,0.04927494,117850.0,117840.0,1.63915596]
[1753918738983,0.04927494,117850.0,117840.0,1.72562118]
[1753918740258,0.06517494,117850.0,117840.0,1.72526118]
[1753918741123,0.06517494,117850.0,117840.0,1.59302118]
[1753918741353,0.06517494,117850.0,117840.0,1.72526118]
[1753918750454,0.04927494,117850.0,117840.0,1.72526118]
[1753918751380,0.04927494,117850.0,117840.0,1.72526118]
[1753918757456,0.06507494,117850.0,117840.0,1.72526118]
[1753918762134,0.06507494,117850.0,117840.0,0.94693632]
[1753918762335,0.06507494,117850.0,117840.0,1.72526118]
[1753918763695,0.04927494,117850.0,117840.0,1.72526118]
[1753918766446,0.04927494,117850.0,117840.0,1.74086118]
[1753918766867,0.04927494,117850.0,117840.0,2.87548604]
[1753918768891,0.04927494,117850.0,117840.0,1.31883632]
[1753918769116,0.04927494,117850.0,117840.0,2.08086118]
[1753918769340,0.04927494,117850.0,117840.0,2.08050118]
[1753918778801,0.04927494,117850.0,117840.0,1.94862118]
[1753918779016,0.04927494,117850.0,117840.0,2.08038118]
[1753918784891,0.04927494,117850.0,117840.0,2.85870604]
[1753918785718,0.04927494,117850.0,117840.0,2.08038118]
[1753918785933,0.04927494,117850.0,117840.0,2.85870604]
[1753918786818,0.04927494,117850.0,117840.0,1.30205632]
[1753918787012,0.04927494,117850.0,117840.0,2.85870604]
[1753918789425,0.04927494,117850.0,117840.0,2.85864604]
[1753918790016,0.04927494,117850.0,117840.0,2.72688604]
[1753918790263,0.04927494,117850.0,117840.0,2.85856604]
[1753918792796,0.04927494,117850.0,117840.0,2.85344604]
[1753918793032,0.04927494,117850.0,117840.0,2.85856604]
[1753918795901,0.04927494,117850.0,117840.0,2.72688604]
[1753918796109,0.04927494,117850.0,117840.0,2.85868604]
[1753918805363,0.04927494,117850.0,117840.0,2.06476118]
[1753918805560,0.06437494,117850.0,117840.0,2.06476118]
[1753918812847,0.06437494,117850.0,117840.0,2.06594118]
[1753918828608,0.09132494,117850.0,117840.0,1.93107118]
[1753918828817,0.10742494,117850.0,117840.0,2.06275118]
[1753918829024,0.10742494,117850.0,117840.0,2.06070118]
[1753918829186,0.10742494,117850.0,117840.0,2.03624118]
[1753918829976,0.10742494,117850.0,117840.0,1.90456118]
[1753918830177,0.10742494,117850.0,117840.0,2.06104118]
[1753918832406,0.06634494,117850.0,117840.0,2.06308118]
[1753918832830,0.06634494,117850.0,117840.0,2.06625118]
[1753918833645,0.06634494,117850.0,117840.0,2.06621118]
[1753918841616,0.06437494,117850.0,117840.0,2.06621118]
[1753918851600,0.06437494,117850.0,117840.0,1.28784632]
[1753918851806,0.06437494,117850.0,117840.0,2.06617118]
[1753918852926,0.06437494,117850.0,117840.0,1.72617118]
[1753918854915,0.06437494,117850.0,117840.0,2.06617118]
[1753918856278,0.06437494,117850.0,117840.0,1.93457118]
[1753918856483,0.06437494,117850.0,117840.0,1.72613118]
[1753918858988,0.06437494,117850.0,117840.0,2.06613118]
[1753918878223,0.06437494,117850.0,117840.0,1.28780632]
[1753918878429,0.06437494,117850.0,117840.0,2.06613118]
[1753918880526,0.06437494,117850.0,117840.0,1.93457118]
[1753918880904,0.06437494,117850.0,117840.0,2.06605118]
[1753918883847,0.06437494,117850.0,117840.0,1.93457118]
[1753918884047,0.06437494,117850.0,117840.0,2.06605118]
[1753918889948,0.06437494,117850.0,117840.0,1.28772632]
[1753918890170,0.06437494,117850.0,117840.0,2.06605118]
[1753918893245,0.04927494,117850.0,117840.0,2.06605118]
[1753918893657,0.04927494,117850.0,117840.0,2.08235118]
[1753918895028,0.04927494,117850.0,117840.0,2.87707604]
[1753918896268,0.04927494,117850.0,117840.0,1.95087118]
[1753918896471,0.04927494,117850.0,117840.0,2.08227118]
[1753918897229,0.04927494,117850.0,117840.0,2.86059604]
[1753918897749,0.04927494,117850.0,117840.0,2.08227118]
[1753918899793,0.04927494,117850.0,117840.0,2.86059604]
[1753918900185,0.04927494,117850.0,117840.0,2.87804506]
[1753918900395,1e-08,117850.0,117840.0,2.89454506]
[1753918901206,1e-08,117850.0,117840.0,2.91954506]
[1753918902216,1e-08,117850.0,117840.0,2.90654506]
[1753918902424,1e-08,117850.0,117840.0,2.91554506]
[1753918902625,1e-08,117850.0,117840.0,2.92154506]
[1753918903685,1e-08,117850.0,117840.0,1.36489534]
[1753918903888,1e-08,117850.0,117840.0,2.92154506]
[1753918907450,1e-08,117850.0,117840.0,2.90504506]
[1753918909421,1e-08,117850.0,117840.0,2.1267202]
[1753918909617,1e-08,117850.0,117840.0,1.9953202]
[1753918909826,1e-08,117850.0,117840.0,2.1103802]
[1753918910235,1e-08,117850.0,117840.0,2.1266802]
[1753918911386,1e-08,117850.0,117840.0,2.90500506]
[1753918911998,1e-08,117850.0,117840.0,2.92160506]
[1753918912876,0.06398117,117860.0,117850.0,0.19516246]
[1753918913077,0.06398117,117860.0,117850.0,1.19143462]
[1753918913287,0.06398117,117860.0,117850.0,1.21885462]
[1753918913485,0.06398117,117860.0,117850.0,1.24435362]
[1753918913944,0.06398117,117860.0,117850.0,1.23904362]
[1753918914175,0.06398117,117860.0,117850.0,1.25204362]
[1753918915805,0.06398117,117860.0,117850.0,1.45592362]
[1753918916237,0.10240117,117860.0,117850.0,1.45592362]
[1753918916911,0.10240117,117860.0,117850.0,0.94179876]
[1753918917113,0.10240117,117860.0,117850.0,1.436422]
[1753918917403,0.08670117,117860.0,117850.0,1.459722]
[1753918917781,0.06398117,117860.0,117850.0,1.459722]
[1753918918791,0.06398117,117860.0,117850.0,0.94083876]
[1753918919016,0.06613117,117860.0,117850.0,1.461832]
[1753918921113,0.06613117,117860.0,117850.0,1.464962]
[1753918921545,0.10535117,117860.0,117850.0,1.305102]
[1753918921758,0.10855117,117860.0,117850.0,1.410883]
[1753918921969,0.10535117,117860.0,117850.0,1.459683]
[1753918922926,0.10535117,117860.0,117850.0,1.195483]
[1753918923575,0.08263117,117860.0,117850.0,1.195483]
[1753918924023,0.08263117,117860.0,117850.0,1.197593]
[1753918926231,0.08263117,117860.0,117850.0,1.200723]
[1753918926731,0.06613117,117860.0,117850.0,1.200723]
[1753918927172,0.06613117,117860.0,117850.0,1.46016462]
[1753918930187,0.06398117,117860.0,117850.0,1.46016462]
[1753918930420,0.06398117,117860.0,117850.0,1.200723]
[1753918931014,0.06398117,117860.0,117850.0,1.46016462]
[1753918932418,0.06398117,117860.0,117850.0,0.68183976]
[1753918932613,0.06398117,117860.0,117850.0,1.46016462]
[1753918935197,0.04798117,117860.0,117850.0,1.47566462]
[1753918936507,0.04798117,117860.0,117850.0,0.69733976]
[1753918936739,0.04798117,117860.0,117850.0,1.47566462]
[1753918940071,0.04798117,117860.0,117850.0,1.46016462]
[1753918943054,0.06318117,117860.0,117850.0,1.46016462]
[1753918943649,0.04798117,117860.0,117850.0,1.72436462]
[1753918952639,0.04798117,117860.0,117850.0,1.73936462]
[1753918967948,0.04798117,117860.0,117850.0,1.72436462]
[1753918969283,0.04798117,117860.0,117850.0,1.333643]
[1753918969516,0.06318117,117860.0,117850.0,1.464683]
[1753918969729,0.06318117,117860.0,117850.0,1.72412462]
[1753918973509,0.04798117,117860.0,117850.0,1.72412462]
[1753918978973,0.04798117,117860.0,117850.0,1.73952462]
[1753918979172,0.07819924,117870.0,117860.0,0.1951459]
[1753918979348,0.07819924,117870.0,117860.0,1.19109806]
[1753918979559,0.07819924,117870.0,117860.0,1.21718806]
[1753918980374,0.07819924,117870.0,117860.0,1.22118806]
[1753918982085,0.07819924,117870.0,117860.0,1.22818806]
[1753918982991,0.07819924,117870.0,117860.0,2.00651292]
[1753918983200,0.06319924,117870.0,117860.0,2.02191292]
[1753918983622,0.06319924,117870.0,117860.0,2.04740892]
[1753918984305,0.06319924,117870.0,117860.0,2.06485794]
[1753918984514,0.06319924,117870.0,117860.0,2.08045794]
[1753918985185,0.10385218,117880.0,117870.0,0.19512934]
[1753918985408,0.10433701,117880.0,117870.0,1.1910415]
[1753918985618,0.10433701,117880.0,117870.0,1.2171315]
[1753918986433,0.10433701,117880.0,117870.0,1.2211315]
[1753918987846,0.10433701,117880.0,117870.0,1.2271315]
[1753918988608,0.08883701,117880.0,117870.0,1.2271315]
[1753918989633,1e-08,117880.0,117870.0,1.2421315]
[1753918990254,1e-08,117880.0,117870.0,1.2676255]
[1753918990705,1e-08,117880.0,117870.0,1.2616255]
[1753918990910,1e-08,117880.0,117870.0,1.5328255]
[1753918992168,1e-08,117880.0,117870.0,1.5288255]
[1753918992608,1e-08,117880.0,117870.0,1.5328255]
[1753918999174,1e-08,117880.0,117870.0,1.5178255]
[1753919004006,0.01650001,117880.0,117870.0,1.5178255]
[1753919007332,1e-08,117880.0,117870.0,1.5340255]
[1753919008366,1e-08,117880.0,117870.0,1.5178255]
[1753919009440,0.01540001,117880.0,117870.0,1.5178255]
[1753919010765,1e-08,117880.0,117870.0,1.5336255]
[1753919011178,1e-08,117880.0,117870.0,1.5178255]
[1753919012654,1e-08,117880.0,117870.0,1.5329255]
[1753919014359,1e-08,117880.0,117870.0,1.5178255]
[1753919021314,1e-08,117880.0,117870.0,1.4923315]
[1753919021921,1e-08,117880.0,117870.0,1.6961715]
[1753919028973,1e-08,117880.0,117870.0,1.7113715]
[1753919030542,1e-08,117880.0,117870.0,2.06882052]
[1753919030753,1e-08,117880.0,117870.0,2.86334538]
[1753919030962,1e-08,117880.0,117870.0,2.88883838]
[1753919033427,0.06116377,117890.0,117880.0,1.75176251]
[1753919033645,0.06121223,117890.0,117880.0,1.96889981]
[1753919033851,0.06121223,117890.0,117880.0,1.99499981]
[1753919034908,0.06121223,117890.0,117880.0,1.99899981]
[1753919035318,0.06121223,117890.0,117880.0,2.26319981]
[1753919035870,0.06121223,117890.0,117880.0,2.26919981]
[1753919036084,0.04571223,117890.0,117880.0,2.26919981]
[1753919036758,0.06171223,117890.0,117880.0,2.26919981]
[1753919037973,0.04571223,117890.0,117880.0,2.26919981]
[1753919038751,0.06111223,117890.0,117880.0,2.26919981]
[1753919039960,0.04571223,117890.0,117880.0,1.49087495]
[1753919040122,0.06161223,117890.0,117880.0,1.49087495]
[1753919040908,0.06161223,117890.0,117880.0,2.26919981]
[1753919042715,0.06161223,117890.0,117880.0,1.49087495]
[1753919043115,0.06161223,117890.0,117880.0,2.26919981]
[1753919046421,0.04571223,117890.0,117880.0,2.13855981]
[1753919046606,0.06101223,117890.0,117880.0,1.36023495]
[1753919046830,0.06101223,117890.0,117880.0,1.49079495]
[1753919048490,0.04571223,117890.0,117880.0,1.49079495]
[1753919048904,0.06081223,117890.0,117880.0,1.49079495]
[1753919049287,0.06081223,117890.0,117880.0,0.71247009]
[1753919049504,0.06081223,117890.0,117880.0,1.49079495]
[1753919055619,0.06081223,117890.0,117880.0,1.69463495]
[1753919058446,0.04571223,117890.0,117880.0,2.48875981]
[1753919081528,0.04571223,117890.0,117880.0,2.51425181]
[1753919081964,0.04571223,117890.0,117880.0,1.73592695]
[1753919083821,0.04571223,117890.0,117880.0,1.60536695]
[1753919084038,0.06091223,117890.0,117880.0,1.71992695]
[1753919088885,0.04571223,117890.0,117880.0,1.71992695]
[1753919089104,0.04571223,117890.0,117880.0,1.73612695]
[1753919090126,0.04571223,117890.0,117880.0,2.51445181]
[1753919094085,0.06111223,117890.0,117880.0,2.49825181]
[1753919094507,0.04571223,117890.0,117880.0,2.49825181]
[1753919094939,0.04571223,117890.0,117880.0,1.71992695]
[1753919095157,0.04571223,117890.0,117880.0,1.73552695]
[1753919095386,0.04571223,117890.0,117880.0,2.51385181]
[1753919098326,0.04571223,117890.0,117880.0,1.73552695]
[1753919100388,0.04571223,117890.0,117880.0,1.71992695]
[1753919100613,0.06211223,117890.0,117880.0,1.71992695]
[1753919100825,0.04571223,117890.0,117880.0,1.71992695]
[1753919103737,0.04571223,117890.0,117880.0,2.51395181]
[1753919105144,0.04571223,117890.0,117880.0,2.53140083]
[1753919105356,1e-08,117890.0,117880.0,2.87140083]
[1753919105563,1e-08,117890.0,117880.0,2.89640083]
[1753919105783,1e-08,117890.0,117880.0,2.91220083]
[1753919106623,1e-08,117890.0,117880.0,2.90220083]
[1753919106830,1e-08,117890.0,117880.0,2.90820083]
[1753919108631,1e-08,117890.0,117880.0,2.91720083]
[1753919109557,1e-08,117890.0,117880.0,2.90140083]
[1753919110836,1e-08,117890.0,117880.0,1.34475111]
[1753919111058,1e-08,117890.0,117880.0,2.90140083]
[1753919112841,1e-08,117890.0,117880.0,2.91750083]
[1753919113289,1e-08,117890.0,117880.0,1.36085111]
[1753919113500,1e-08,117890.0,117880.0,2.90140083]
[1753919114995,1e-08,117890.0,117880.0,2.91770083]
[1753919120105,0.0074357,117930.0,117920.0,1.1869441]
[1753919120359,0.0074357,117930.0,117920.0,1.2097741]
[1753919120571,0.0074357,117930.0,117920.0,0.43144924]
[1753919120816,0.0074357,117930.0,117920.0,1.1869441]
[1753919121020,0.0074357,117930.0,117920.0,1.21220993]
[1753919121231,0.0074357,117930.0,117920.0,1.23503993]
[1753919121444,0.0042757,117930.0,117920.0,1.23503993]
[1753919122373,0.0042757,117930.0,117920.0,1.43883993]
[1753919122586,0.0196757,117930.0,117920.0,1.43883993]
[1753919122817,0.0196757,117930.0,117920.0,1.44483993]
[1753919123046,0.0042757,117930.0,117920.0,1.31969993]
[1753919123275,0.0042757,117930.0,117920.0,1.44985993]
[1753919123523,0.0042757,117930.0,117920.0,1.33899993]
[1753919123724,0.0042757,117930.0,117920.0,1.46915993]
[1753919124289,0.0021657,117930.0,117920.0,1.46915993]
[1753919124923,0.0042757,117930.0,117920.0,1.46915993]
[1753919125653,0.0021657,117930.0,117920.0,1.46915993]
[1753919129532,0.0021657,117930.0,117920.0,2.54473381]
[1753919130628,0.0021657,117930.0,117920.0,2.57021581]
[1753919132878,0.0002,117940.0,117930.0,0.19503007]
[1753919133121,0.00216,117940.0,117930.0,1.48094223]
[1753919133565,0.01746,117940.0,117930.0,1.48094223]
[1753919133992,0.01746,117940.0,117930.0,1.48442706]
[1753919134913,0.0002,117940.0,117930.0,1.49942706]
[1753919135359,0.0002,117940.0,117930.0,1.52490806]
[1753919136040,0.00216,117940.0,117930.0,1.52490806]
[1753919136673,0.00216,117940.0,117930.0,1.52190806]
[1753919136874,0.00216,117940.0,117930.0,1.52590806]
[1753919137338,0.00216,117940.0,117930.0,1.27146644]
[1753919137545,0.02075,117940.0,117930.0,1.22763644]
[1753919137747,0.02075,117940.0,117930.0,1.20215544]
[1753919137961,0.02075,117940.0,117930.0,1.22568544]
[1753919138174,0.01766,117940.0,117930.0,1.22568544]
[1753919139037,0.01766,117940.0,117930.0,1.09060544]
[1753919139248,0.01766,117940.0,117930.0,1.22068544]
[1753919139719,0.01766,117940.0,117930.0,1.22668544]
[1753919140356,0.01766,117940.0,117930.0,1.49138706]
[1753919140574,0.01766,117940.0,117930.0,1.23194544]
[1753919141211,0.01766,117940.0,117930.0,1.10186544]
[1753919141708,0.01766,117940.0,117930.0,1.23190544]
[1753919141927,0.01766,117940.0,117930.0,1.49134706]
[1753919142153,0.01766,117940.0,117930.0,1.23190544]
[1753919142381,0.0002,117940.0,117930.0,1.50754706]
[1753919142653,0.0002,117940.0,117930.0,1.37750706]
[1753919142854,0.0002,117940.0,117930.0,1.50754706]
[1753919143442,0.0002,117940.0,117930.0,0.7292222]
[1753919143642,0.0002,117940.0,117930.0,1.50754706]
[1753919144056,0.0002,117940.0,117930.0,1.52374706]
[1753919149175,0.0002,117940.0,117930.0,1.54119608]
[1753919157690,0.0002,117940.0,117930.0,0.76287122]
[1753919157895,0.0002,117940.0,117930.0,1.54119608]
[1753919160942,0.0002,117940.0,117930.0,1.56619608]
[1753919162456,0.0002,117940.0,117930.0,1.56619608]
[1753919164335,0.0002,117940.0,117930.0,1.54266608]
[1753919164556,0.0002,117940.0,117930.0,1.56573608]
[1753919168052,0.0002,117940.0,117930.0,1.54266608]
[1753919168254,0.0002,117940.0,117930.0,1.56573608]
[1753919168602,0.0002,117940.0,117930.0,1.90573608]
[1753919170582,0.00543528,117960.0,117950.0,0.210297]
[1753919170796,0.00543528,117960.0,117950.0,1.22257818]
[1753919171001,0.00543528,117960.0,117950.0,1.56257818]
[1753919171233,0.0002,117970.0,117950.0,1.67297418]
[1753919171485,0.05832741,118020.0,118010.0,0.19489786]
[1753919171755,0.03468766,118020.0,118010.0,0.88424389]
[1753919171989,0.05769733,118020.0,118010.0,0.49488227]
[1753919172260,0.06076733,118020.0,118010.0,0.85394297]
[1753919172457,0.05385766,118020.0,118010.0,1.11338459]
[1753919172662,0.05385766,118020.0,118010.0,0.59450135]
[1753919172839,0.05385766,118020.0,118010.0,0.59498618]
[1753919173083,0.05385766,118020.0,118010.0,0.60098618]
[1753919173291,0.05385766,118020.0,118010.0,0.09096213]
[1753919173714,0.05385766,118020.0,118010.0,0.41860213]
[1753919173922,0.05385766,118020.0,118010.0,0.30447592]
[1753919174351,0.05215719,118020.0,118010.0,0.23067592]
[1753919174559,0.04590786,118020.0,118010.0,0.10075685]
[1753919174761,0.38590786,118020.0,118010.0,0.21484213]
[1753919174971,0.06423451,118020.0,118010.0,0.08496213]
[1753919175181,0.06423451,118020.0,118010.0,0.21484213]
[1753919175182,0.05384646,118020.0,118010.0,0.21484213]
[1753919175388,0.05384646,118020.0,118010.0,0.21984213]
[1753919175593,0.06009467,118020.0,118010.0,0.21484213]
[1753919175801,0.06009467,118020.0,118010.0,0.21324213]
[1753919176011,0.06009467,118020.0,118010.0,0.21424213]
[1753919176227,0.06009484,118020.0,118010.0,0.21424213]
[1753919176430,0.06009484,118020.0,118010.0,0.08436213]
[1753919176636,4.81038686,118020.0,118010.0,0.09916483]
[1753919176874,4.81401351,118020.0,117990.0,0.20372]
[1753919177057,0.3403,118000.0,117990.0,0.28868267]
[1753919177261,0.3403,118000.0,117990.0,0.41856267]
[1753919177262,0.37629,118000.0,117990.0,0.41856267]
[1753919177471,0.38835,118000.0,117990.0,0.41856267]
[1753919178080,0.04835,118000.0,117990.0,0.28868267]
[1753919178318,0.04835,118000.0,117990.0,0.41856267]
[1753919178319,0.01432,118000.0,117990.0,0.41856267]
[1753919180068,0.35432,118000.0,117990.0,0.41856267]
[1753919182502,0.35432,118000.0,117990.0,0.43436992]
[1753919182710,0.37261644,118000.0,117990.0,0.43432992]
[1753919182925,0.40987808,118000.0,117990.0,0.43432992]
[1753919184239,0.06987808,118000.0,117990.0,0.43432992]
[1753919184454,0.01432,118000.0,117990.0,0.43432992]
[1753919184920,0.01432,118000.0,117990.0,0.41852267]
[1753919186143,0.01437,118000.0,117990.0,0.41852267]
[1753919187719,0.00538,118000.0,117990.0,0.41852267]
[1753919188132,0.04492407,118020.0,117990.0,0.61642856]
[1753919188339,0.04387447,118020.0,118010.0,0.068146]
[1753919188557,0.02035647,118020.0,118010.0,0.2824633]
[1753919188763,0.02035647,118020.0,118010.0,0.3058933]
[1753919189206,0.02035647,118020.0,118010.0,0.2824633]
[1753919189837,0.01693647,118020.0,118010.0,0.3099333]
[1753919190044,0.34078786,118020.0,118010.0,0.3128633]
[1753919190250,0.34078786,118020.0,118010.0,0.48234046]
[1753919190465,0.34078786,118020.0,118010.0,0.3128633]
[1753919191133,0.00274786,118020.0,118010.0,0.3128633]
[1753919192891,0.00274786,118020.0,118010.0,0.1780533]
[1753919193129,0.01485786,118020.0,118010.0,0.0864773]
[1753919193369,0.01515786,118020.0,118010.0,0.1318]
[1753919193586,0.06898623,118020.0,118010.0,0.1318]
[1753919194714,0.06898623,118020.0,118010.0,0.1298]
[1753919196188,4.81792923,118020.0,118010.0,0.1298]
[1753919199955,4.90735923,118020.0,118010.0,0.1298]
[1753919201480,4.90735923,118020.0,118010.0,0.12961167]
[1753919205552,4.90705923,118020.0,118010.0,0.12961167]
[1753919207736,0.48912623,118020.0,118010.0,0.12961167]
[1753919208097,4.89806923,118020.0,118010.0,0.12961167]
[1753919208944,4.89494923,118020.0,118010.0,0.15304167]
[1753919209379,4.89494923,118020.0,118010.0,0.15508167]
[1753919209616,4.89494923,118020.0,118010.0,0.15801167]
[1753919209827,4.89494923,118020.0,118010.0,0.24248897]
[1753919209828,0.37716721,118020.0,118010.0,0.24248897]
[1753919210041,0.37716721,118020.0,118010.0,0.27338897]
[1753919217046,0.37923721,118020.0,118010.0,0.23751897]
[1753919217269,0.38232721,118020.0,118010.0,0.0844773]
[1753919217473,0.39131721,118020.0,118010.0,0.2142373]
[1753919217917,0.38232721,118020.0,118010.0,0.2142373]
[1753919218121,0.38232721,118020.0,118010.0,0.2378773]
[1753919218324,0.39821626,118020.0,118010.0,0.2378773]
[1753919220852,0.42465528,118020.0,118010.0,0.12976]
[1753919221069,0.39512626,118020.0,118010.0,0.15546]
[1753919221281,0.39305626,118020.0,118010.0,0.2741473]
[1753919221496,0.44405626,118020.0,118010.0,0.2741473]
[1753919221715,0.39305626,118020.0,118010.0,0.2741473]
[1753919223803,0.39306832,118020.0,118010.0,0.2741473]
[1753919225329,0.39306815,118020.0,118010.0,0.2741473]
[1753919226558,0.39306826,118020.0,118010.0,0.2741473]
[1753919228095,0.39306834,118020.0,118010.0,0.2741473]
[1753919229183,0.37716721,118020.0,118010.0,0.2741473]
[1753919231387,0.39306908,118020.0,118010.0,0.2741473]
[1753919235035,0.37716721,118020.0,118010.0,0.2741473]
[1753919237397,0.39307291,118020.0,118010.0,0.2741473]
[1753919239497,0.39823291,118020.0,118010.0,0.2689773]
[1753919240781,0.39514291,118020.0,118010.0,0.2710373]
[1753919240986,0.39514291,118020.0,118010.0,0.2741473]
[1753919241636,0.40309732,118020.0,118010.0,0.2741473]
[1753919242067,0.36464797,118020.0,118010.0,0.2741473]
[1753919242275,0.36464797,118020.0,118010.0,0.3422933]
[1753919247303,0.34874227,118020.0,118010.0,0.3422933]
[1753919247505,0.36465139,118020.0,118010.0,0.3422933]
[1753919249364,0.36465216,118020.0,118010.0,0.3422933]
[1753919249954,0.40198094,118020.0,118010.0,0.3422933]
[1753919252715,0.40198271,118020.0,118010.0,0.3422933]
[1753919256048,0.40198271,118020.0,118010.0,0.3415933]
[1753919261572,0.40402271,118020.0,118010.0,0.3415933]
[1753919264320,0.40402162,118020.0,118010.0,0.3415933]
[1753919267803,0.40198162,118020.0,118010.0,0.3415933]
[1753919268900,0.40198162,118020.0,118010.0,0.60046253]
[1753919270069,0.38607153,118020.0,118010.0,0.60046253]
[1753919270393,0.37811664,118020.0,118010.0,0.60046253]
[1753919270812,0.37811664,118020.0,118010.0,0.3415933]
[1753919271016,0.38607087,118020.0,118010.0,0.3415933]
[1753919271221,0.37811664,118020.0,118010.0,0.3415933]
[1753919276757,0.37811664,118020.0,118010.0,0.85623478]
[1753919277338,0.37811664,118020.0,118010.0,0.51107046]
[1753919280606,0.38027664,118020.0,118010.0,0.3415933]
[1753919282369,0.38027664,118020.0,118010.0,0.51107046]
[1753919284157,0.37811664,118020.0,118010.0,0.51107046]
[1753919287534,0.37811664,118020.0,118010.0,0.3415933]
[1753919288176,0.37811664,118020.0,118010.0,0.51107046]
[1753919288790,0.37811664,118020.0,118010.0,0.85623478]
[1753919292990,0.37811664,118020.0,118010.0,0.769931]
[1753919294550,0.03811664,118020.0,118010.0,0.769931]
[1753919294765,0.00078786,118020.0,118010.0,0.769931]
[1753919296931,0.00078786,118020.0,118010.0,1.04573889]
[1753919297185,0.00078786,118020.0,118010.0,1.05721224]
[1753919298135,0.00078786,118020.0,118010.0,1.05421224]
[1753919298349,0.00078786,118020.0,118010.0,1.31307278]
[1753919298548,0.00078786,118020.0,118010.0,1.31807278]
[1753919298833,0.00078786,118020.0,118010.0,1.05921224]
[1753919299062,0.00078786,118020.0,118010.0,1.05841224]
[1753919299298,0.03282713,118070.0,118060.0,0.032]
[1753919299526,0.03282713,118070.0,118060.0,0.2460773]
[1753919299527,0.03334511,118070.0,118060.0,0.2460773]
[1753919300233,0.03334511,118070.0,118060.0,0.24497466]
[1753919300511,0.03334511,118070.0,118060.0,0.24546003]
[1753919301217,0.03334073,118070.0,118060.0,0.24546003]
[1753919301439,0.37334073,118070.0,118060.0,0.24546003]
[1753919301707,0.39163631,118070.0,118060.0,0.24746003]
[1753919302120,0.44670104,118070.0,118060.0,0.24746003]
[1753919302341,0.45569104,118070.0,118060.0,0.24746003]
[1753919302549,0.44670104,118070.0,118060.0,0.24746003]
[1753919302754,0.45569104,118070.0,118060.0,0.24746003]
[1753919304410,0.45569104,118070.0,118060.0,0.24742003]
[1753919304844,0.45569104,118070.0,118060.0,0.11786003]
[1753919305024,0.45569104,118070.0,118060.0,0.24742003]
[1753919305834,0.45569104,118070.0,118060.0,0.11786003]
[1753919306070,0.45569104,118070.0,118060.0,0.24742003]
[1753919308416,0.44670104,118070.0,118060.0,0.24742003]
[1753919308649,0.44669244,118070.0,118060.0,0.24742003]
[1753919308871,0.10669244,118070.0,118060.0,0.24742003]
[1753919309083,0.08839686,118070.0,118060.0,0.24742003]
[1753919309293,0.08839686,118070.0,118060.0,0.11786003]
[1753919309506,0.08839686,118070.0,118060.0,0.24742003]
[1753919309976,0.08839686,118070.0,118060.0,0.11786003]
[1753919310180,0.08839686,118070.0,118060.0,0.00248537]
[1753919310181,0.09738686,118070.0,118060.0,0.00248537]
[1753919310393,0.09958686,118070.0,118060.0,0.13204537]
[1753919310800,0.11703588,118070.0,118060.0,0.00248537]
[1753919311027,0.11703588,118070.0,118060.0,0.13204537]
[1753919311028,0.14250188,118070.0,118060.0,0.13204537]
[1753919311240,0.48250188,118070.0,118060.0,0.13204537]
[1753919311444,0.50077961,118070.0,118060.0,0.13204537]
[1753919311616,0.5007706,118070.0,118060.0,0.13204537]
[1753919312404,0.1607706,118070.0,118060.0,0.13004537]
[1753919312587,0.48249287,118070.0,118060.0,0.13004537]
[1753919312823,0.5007706,118070.0,118060.0,0.13004537]
[1753919313521,0.42259523,118070.0,118060.0,0.27107267]
[1753919313809,0.42259523,118070.0,118060.0,0.27422267]
[1753919314327,0.42043523,118070.0,118060.0,0.27422267]
[1753919314546,0.3905371,118070.0,118060.0,0.27422267]
[1753919316740,0.3926871,118070.0,118060.0,0.27107267]
[1753919316955,0.44357983,118070.0,118060.0,0.26894267]
[1753919317165,0.44357983,118070.0,118060.0,0.13938267]
[1753919317394,0.44357983,118070.0,118060.0,0.26890267]
[1753919317613,0.3905371,118070.0,118060.0,0.61909708]
[1753919317827,0.37225937,118070.0,118060.0,0.61909708]
[1753919318450,0.37225937,118070.0,118060.0,0.27418267]
[1753919322266,0.39054767,118070.0,118060.0,0.27418267]
[1753919322932,0.39055379,118070.0,118060.0,0.27418267]
[1753919323108,0.43360917,118070.0,118060.0,0.27418267]
[1753919325450,0.43361614,118070.0,118060.0,0.27418267]
[1753919332501,0.41774011,118070.0,118060.0,0.27418267]
[1753919332706,0.43363151,118070.0,118060.0,0.27418267]
[1753919334765,0.43578151,118070.0,118060.0,0.27418267]
[1753919335361,0.39366118,118070.0,118060.0,0.27418267]
[1753919335794,0.40955225,118070.0,118060.0,0.27418267]
[1753919336632,0.39366118,118070.0,118060.0,0.27418267]
[1753919340496,0.39151118,118070.0,118060.0,0.27418267]
[1753919342968,0.39151118,118070.0,118060.0,0.53283589]
[1753919343854,0.39151118,118070.0,118060.0,0.27418267]
[1753919344064,0.39151118,118070.0,118060.0,0.53283589]
[1753919345106,0.39348118,118070.0,118060.0,0.53283589]
[1753919345320,0.39348118,118070.0,118060.0,0.53338589]
[1753919345521,0.39348118,118070.0,118060.0,0.27158267]
[1753919347685,0.39647118,118070.0,118060.0,0.26937267]
[1753919348108,0.39348118,118070.0,118060.0,0.13993267]
[1753919348530,0.39348118,118070.0,118060.0,0.26937267]
[1753919348966,0.39647118,118070.0,118060.0,0.26937267]
[1753919349435,0.39647118,118070.0,118060.0,0.13993267]
[1753919349658,0.39348118,118070.0,118060.0,0.26937267]
[1753919350504,0.39348118,118070.0,118060.0,0.13993267]
[1753919350738,0.39348118,118070.0,118060.0,0.26937267]
[1753919350921,0.39348118,118070.0,118060.0,0.13993267]